fUST/lending_fUST_20250905
["ID","MTS","AMOUNT","RATE_DAILY","PERIOD"]
[383630169,1757049045644,-480.0,0.00014934,2]
[383630170,1757049045654,-480.0,0.00014934,2]
[383630171,1757049045664,-480.0,0.00014934,2]
[383630172,1757049045674,-480.0,0.00014934,2]
[383630173,1757049045683,-480.0,0.00014934,2]
[383630174,1757049045693,-545.54,0.00014934,2]
[383630175,1757049045702,-973.04,0.00014934,2]
[383630176,1757049045712,-697.75,0.00014934,2]
[383630177,1757049045721,-1152.57,0.00014934,2]
[383630178,1757049045731,-480.0,0.00014934,2]
[383630179,1757049045740,-615.01,0.00014934,2]
[383630180,1757049045749,-480.0,0.00014934,2]
[383630181,1757049045759,-709.97,0.00014934,2]
[383630182,1757049045769,-480.0,0.00014934,2]
[383630183,1757049045778,-480.0,0.00014934,2]
[383630184,1757049045787,-480.0,0.00014934,2]
[383630185,1757049045796,-547.28,0.00014934,2]
[383630186,1757049045806,-480.0,0.00014934,2]
[383630187,1757049045815,-480.0,0.00014934,2]
[383630188,1757049045824,-480.0,0.00014934,2]
[383630189,1757049045834,-533.33,0.00014934,2]
[383630190,1757049045843,-1128.96,0.00014934,2]
[383630191,1757049045855,-480.0,0.00014935,2]
[383630192,1757049045865,-277.23457432,0.00014935,2]
[383630193,1757049045874,-469.98,0.00014935,2]
[383630194,1757049045884,-257.09,0.00014935,2]
[383630195,1757049045983,-480.0,0.00014935,2]
[383630196,1757049045992,-315.93238982,0.00014935,2]
[383630198,1757049046601,-188.82195764,0.00014004,2]
[383630199,1757049046611,-166.21317672,0.00014935,2]
[383630200,1757049046621,-480.0,0.00014935,2]
[383630201,1757049046630,-480.0,0.00014935,2]
[383630202,1757049046639,-480.0,0.00014935,2]
[383630203,1757049046648,-480.0,0.00014935,2]
[383630204,1757049046657,-480.0,0.00014935,2]
[383630205,1757049046668,-480.0,0.00014935,2]
[383630206,1757049046677,-759.21,0.00014935,2]
[383630207,1757049046687,-262.86762526,0.00014935,2]
[383630208,1757049046697,-480.0,0.00014935,2]
[383630209,1757049046707,-480.0,0.00014935,2]
[383630210,1757049046716,-480.0,0.00014935,2]
[383630211,1757049046726,-480.0,0.00014935,2]
[383630212,1757049046735,-274.9560289,0.00014935,2]
[383630213,1757049046744,-480.0,0.00014935,2]
[383630214,1757049046754,-480.0,0.00014935,2]
[383630215,1757049046763,-480.0,0.00014935,2]
[383630216,1757049046773,-480.0,0.00014935,2]
[383630217,1757049046782,-480.0,0.00014935,2]
[383630218,1757049046791,-484.85,0.00014935,2]
[383630219,1757049046800,-480.0,0.00014935,2]
[383630220,1757049046810,-299.67792799,0.00014935,2]
[383630221,1757049046819,-430.6241062,0.00014935,2]
[383630222,1757049046829,-480.0,0.00014935,2]
[383630223,1757049046838,-480.0,0.00014935,2]
[383630224,1757049046847,-480.0,0.00014935,2]
[383630225,1757049046860,-480.0,0.00014935,2]
[383630226,1757049046870,-620.50333237,0.00014935,2]
[383630227,1757049046879,-480.0,0.00014935,2]
[383630228,1757049046888,-414.3254784,0.00014935,2]
[383630229,1757049046898,-582.47391422,0.00014935,2]
[383630230,1757049046908,-480.0,0.00014935,2]
[383630231,1757049046917,-151.0,0.00014935,2]
[383630232,1757049046927,-480.0,0.00014935,2]
[383630233,1757049046937,-320.78,0.00014935,2]
[383630234,1757049046948,-480.0,0.00014935,2]
[383630235,1757049046957,-480.0,0.00014935,2]
[383630236,1757049046966,-480.0,0.00014935,2]
[383630237,1757049046976,-480.0,0.00014935,2]
[383630238,1757049046985,-480.0,0.00014935,2]
[383630239,1757049046995,-480.0,0.00014935,2]
[383630240,1757049047005,-480.0,0.00014935,2]
[383630241,1757049047014,-480.0,0.00014935,2]
[383630242,1757049047024,-480.0,0.00014935,2]
[383630243,1757049047033,-407.15353667,0.00014935,2]
[383630244,1757049047043,-480.0,0.00014935,2]
[383630245,1757049047053,-480.0,0.00014935,2]
[383630246,1757049047063,-151.0,0.00014935,2]
[383630247,1757049047072,-480.0,0.00014935,2]
[383630248,1757049047081,-480.0,0.00014935,2]
[383630249,1757049047090,-3336.34,0.00014935,2]
[383630250,1757049047099,-480.0,0.00014935,2]
[383630251,1757049047109,-506.5,0.00014935,2]
[383630252,1757049047118,-480.0,0.00014935,2]
[383630253,1757049047127,-480.0,0.00014935,2]
[383630254,1757049047135,-654.93,0.00014935,2]
[383630255,1757049047145,-496.49,0.00014935,2]
[383630256,1757049047154,-1220.71,0.00014935,2]
[383630257,1757049047163,-480.0,0.00014935,2]
[383630258,1757049047172,-480.0,0.00014935,2]
[383630259,1757049047182,-480.0,0.00014935,2]
[383630260,1757049047191,-480.0,0.00014935,2]
[383630261,1757049047201,-480.0,0.00014935,2]
[383630262,1757049047210,-1723.69,0.00014935,2]
[383630263,1757049047219,-480.0,0.00014935,2]
[383630264,1757049047229,-480.0,0.00014935,2]
[383630265,1757049047238,-2251.80324959,0.00014935,2]
[383630266,1757049047383,-152.64675041,0.00014935,2]
[383630267,1757049047392,-950.04,0.00014935,2]
[383630268,1757049047402,-480.0,0.00014935,2]
[383630269,1757049047412,-576.59,0.00014935,2]
[383630270,1757049047422,-480.0,0.00014935,2]
[383630271,1757049047432,-480.0,0.00014935,2]
[383630272,1757049047442,-480.0,0.00014935,2]
[383630273,1757049047451,-880.95,0.00014935,2]
[383630274,1757049047460,-480.0,0.00014935,2]
[383630275,1757049047470,-6282.02,0.00014935,2]
[383630276,1757049047479,-480.0,0.00014935,2]
[383630277,1757049047489,-2818.8,0.00014935,2]
[383630278,1757049047498,-578.56,0.00014935,2]
[383630279,1757049047507,-480.0,0.00014935,2]
[383630280,1757049047517,-1315.17,0.00014935,2]
[383630281,1757049047526,-205.25309138,0.00014935,2]
[383630282,1757049047535,-1212.47,0.00014935,2]
[383630283,1757049047545,-802.84,0.00014935,2]
[383630284,1757049047555,-480.0,0.00014935,2]
[383630285,1757049047564,-480.0,0.00014935,2]
[383630286,1757049047573,-480.0,0.00014935,2]
[383630287,1757049047582,-480.0,0.00014935,2]
[383630288,1757049047591,-480.0,0.00014935,2]
[383630289,1757049047601,-480.0,0.00014935,2]
[383630290,1757049047610,-1884.9,0.00014935,2]
[383630291,1757049047620,-151.0,0.00014935,2]
[383630292,1757049047629,-790.65,0.00014935,2]
[383630293,1757049047639,-151.0,0.00014935,2]
[383630294,1757049047648,-480.0,0.00014935,2]
[383630295,1757049047658,-151.0,0.00014935,2]
[383630296,1757049047668,-151.0,0.00014935,2]
[383630297,1757049047677,-151.0,0.00014935,2]
[383630298,1757049047686,-151.0,0.00014935,2]
[383630299,1757049047696,-500.0,0.00014936,2]
[383630300,1757049047705,-611.30614242,0.00014973,2]
[383630301,1757049047715,-6999.5,0.00014998,2]
[383630302,1757049047726,-160.0,0.00015,2]
[383630303,1757049047736,-223.971,0.00015014,2]
[383630304,1757049047745,-1000.0,0.00015021,2]
[383630305,1757049047755,-1394.27,0.00015034,2]
[383630306,1757049047766,-480.0,0.00015034,2]
[383630307,1757049047775,-480.0,0.00015034,2]
[383630308,1757049047785,-480.0,0.00015034,2]
[383630309,1757049047798,-480.0,0.00015034,2]
[383630310,1757049047807,-480.0,0.00015034,2]
[383630311,1757049047818,-480.0,0.00015034,2]
[383630312,1757049047827,-480.0,0.00015034,2]
[383630313,1757049047837,-480.0,0.00015034,2]
[383630314,1757049047846,-482.32594445,0.00015034,2]
[383630315,1757049047860,-480.0,0.00015034,2]
[383630316,1757049047870,-580.87,0.00015034,2]
[383630317,1757049047879,-480.0,0.00015034,2]
[383630318,1757049047888,-480.0,0.00015034,2]
[383630319,1757049047899,-231.66720936,0.00015034,2]
[383630320,1757049047910,-480.0,0.00015034,2]
[383630321,1757049047921,-480.0,0.00015034,2]
[383630322,1757049047934,-480.0,0.00015034,2]
[383630323,1757049047945,-480.0,0.00015034,2]
[383630324,1757049048046,-482.60717759,0.00015034,2]
[383630325,1757049048056,-480.0,0.00015034,2]
[383630326,1757049048065,-480.0,0.00015034,2]
[383630327,1757049048075,-480.0,0.00015034,2]
[383630328,1757049048084,-480.0,0.00015034,2]
[383630329,1757049048094,-480.0,0.00015034,2]
[383630330,1757049048103,-480.0,0.00015034,2]
[383630331,1757049048112,-480.0,0.00015034,2]
[383630332,1757049048122,-480.0,0.00015034,2]
[383630333,1757049048131,-480.0,0.00015034,2]
[383630334,1757049048140,-480.0,0.00015034,2]
[383630335,1757049048149,-480.0,0.00015034,2]
[383630336,1757049048159,-480.0,0.00015034,2]
[383630337,1757049048168,-480.0,0.00015034,2]
[383630338,1757049048178,-480.0,0.00015034,2]
[383630339,1757049048188,-480.0,0.00015035,2]
[383630340,1757049048197,-573.97,0.00015035,2]
[383630341,1757049048207,-480.0,0.00015035,2]
[383630342,1757049048216,-236.07,0.00015035,2]
[383630343,1757049048227,-480.0,0.00015035,2]
[383630344,1757049048237,-480.0,0.00015035,2]
[383630345,1757049048247,-376.85,0.00015035,2]
[383630346,1757049048256,-622.83222508,0.00015035,2]
[383630347,1757049048265,-235.24,0.00015035,2]
[383630348,1757049048274,-480.0,0.00015035,2]
[383630349,1757049048284,-480.0,0.00015035,2]
[383630350,1757049048293,-480.0,0.00015035,2]
[383630351,1757049048304,-161.02223054,0.00015035,2]
[383630352,1757049048314,-310.9517602,0.00015035,2]
[383630353,1757049048323,-480.0,0.00015035,2]
[383630354,1757049048332,-489.79,0.00015035,2]
[383630355,1757049048342,-480.0,0.00015035,2]
[383630356,1757049048351,-480.0,0.00015035,2]
[383630357,1757049048360,-151.0,0.00015035,2]
[383630358,1757049048370,-151.0,0.00015035,2]
[383630359,1757049048380,-151.0,0.00015035,2]
[383630360,1757049048390,-480.0,0.00015035,2]
[383630361,1757049048399,-162.06644,0.00015035,2]
[383630362,1757049048409,-151.0,0.00015035,2]
[383630363,1757049048420,-480.0,0.00015035,2]
[383630364,1757049048430,-191.972598,0.00015035,2]
[383630365,1757049048440,-191.972598,0.00015035,2]
[383630366,1757049048449,-191.972598,0.00015035,2]
[383630367,1757049048459,-191.972598,0.00015035,2]
[383630368,1757049048468,-151.0,0.00015035,2]
[383630369,1757049048478,-151.0,0.00015035,2]
[383630370,1757049048487,-480.0,0.00015037,2]
[383630371,1757049048497,-157.0,0.00015071,2]
[383630372,1757049048506,-500.0,0.00015071,2]
[383630373,1757049048515,-151.0,0.00015071,2]
[383630374,1757049048524,-157.0,0.00015071,2]
[383630375,1757049048534,-157.0,0.00015071,2]
[383630376,1757049048543,-305.66764791,0.00015071,2]
[383630377,1757049048552,-157.0,0.00015071,2]
[383630378,1757049048561,-157.0,0.00015071,2]
[383630379,1757049048571,-302.93181729,0.00015071,2]
[383630380,1757049048580,-500.0,0.00015071,2]
[383630381,1757049048589,-157.0,0.00015071,2]
[383630382,1757049048599,-500.0,0.00015071,2]
[383630383,1757049048608,-500.0,0.00015071,2]
[383630384,1757049048618,-247.41715132,0.00015071,2]
[383630385,1757049048629,-500.0,0.00015071,2]
[383630386,1757049048639,-157.0,0.00015071,2]
[383630387,1757049048648,-157.0,0.00015071,2]
[383630388,1757049048658,-157.0,0.00015071,2]
[383630389,1757049048668,-157.0,0.00015071,2]
[383630390,1757049048677,-157.0,0.00015071,2]
[383630391,1757049048687,-157.0,0.00015071,2]
[383630392,1757049048696,-500.0,0.00015071,2]
[383630393,1757049048705,-885.2896025,0.00015139,2]
[383630394,1757049048715,-480.0,0.00015207,2]
[383630395,1757049048724,-585.69997807,0.00015207,2]
[383630396,1757049048734,-2110.63,0.00015207,2]
[383630397,1757049048743,-480.0,0.00015207,2]
[383630398,1757049048753,-493.32,0.00015207,2]
[383630399,1757049048762,-741.25,0.00015207,2]
[383630400,1757049048771,-480.0,0.00015207,2]
[383630401,1757049048780,-151.0,0.00015208,2]
[383630402,1757049048789,-480.0,0.00015208,2]
[383630403,1757049048799,-1293.63,0.00015208,2]
[383630404,1757049048809,-599.97,0.00015208,2]
[383630405,1757049048818,-480.0,0.00015208,2]
[383630406,1757049048827,-986.93,0.00015208,2]
[383630407,1757049048837,-480.0,0.00015208,2]
[383630408,1757049048847,-480.0,0.00015208,2]
[383630409,1757049048861,-580.55,0.00015208,2]
[383630410,1757049048870,-145.61876852,0.00015208,2]
[383630415,1757049254469,623.568371,0.00013562,2]
[383630416,1757049262774,623.568371,0.00013562,2]
[383630417,1757049278249,623.568371,0.00013562,2]
[383630418,1757049286598,623.568371,0.00013562,2]
[383630419,1757049295546,159.50925487,0.000273,120]
[383630420,1757049303021,623.568371,0.00013562,2]
[383630421,1757049311135,623.568371,0.00013562,2]
[383630422,1757049326557,623.568371,0.00013562,2]
[383630423,1757049334573,623.568371,0.00013562,2]
[383630424,1757049351113,623.568371,0.00013562,2]
[383630425,1757049359053,623.568371,0.00013562,2]
[383630426,1757049375717,623.568371,0.00013562,2]
[383630429,1757049383926,623.568371,0.00013562,2]
[383630430,1757049399581,623.568371,0.00013562,2]
[383630431,1757049407910,623.568371,0.00013562,2]
[383630432,1757049424873,623.568371,0.00013562,2]
[383630433,1757049433292,623.568371,0.00013562,2]
[383630434,1757049448711,623.568371,0.00013562,2]
[383630435,1757049456836,623.568371,0.00013562,2]
[383630436,1757049472811,623.568371,0.00013562,2]
[383630437,1757049481217,623.568371,0.00013562,2]
[383630438,1757049497532,623.568371,0.00013562,2]
[383630439,1757049505519,623.568371,0.00013562,2]
[383630440,1757049521413,623.568371,0.00013562,2]
[383630441,1757049529517,623.568371,0.00013562,2]
[383630442,1757049545091,623.568371,0.00013562,2]
[383630443,1757049553467,623.568371,0.00013562,2]
[383630444,1757049558559,5299.4761476,0.0001349,2]
[383630445,1757049569020,623.568371,0.00013562,2]
[383630446,1757049577067,623.568371,0.00013562,2]
[383630447,1757049593426,623.568371,0.00013562,2]
[383630448,1757049601457,623.568371,0.00013562,2]
[383630449,1757049616975,623.568371,0.00013562,2]
[383630450,1757049625547,623.568371,0.00013562,2]
[383630451,1757049641181,623.568371,0.00013562,2]
[383630452,1757049650233,623.568371,0.00013562,2]
[383630453,1757049666293,623.568371,0.00013562,2]
[383630454,1757049674154,623.568371,0.00013562,2]
[383630455,1757049690210,623.568371,0.00013562,2]
[383630456,1757049698211,623.568371,0.00013562,2]
[383630457,1757049714249,623.568371,0.00013562,2]
[383630458,1757049722154,623.568371,0.00013562,2]
[383630459,1757049738146,623.568371,0.00013562,2]
[383630460,1757049746765,623.568371,0.00013562,2]
[383630461,1757049762252,623.568371,0.00013562,2]
[383630462,1757049771350,623.568371,0.00013562,2]
[383630463,1757049787914,623.568371,0.00013562,2]
[383630464,1757049796541,623.568371,0.00013562,2]
[383630465,1757049812964,623.568371,0.00013562,2]
[383630466,1757049815237,209.3247978,0.00013281,2]
[383630467,1757049821123,623.568371,0.00013562,2]
[383630468,1757049837013,623.568371,0.00013562,2]
[383630469,1757049845098,623.568371,0.00013562,2]
[383630470,1757049860931,623.568371,0.00013562,2]
[383630471,1757049868809,623.568371,0.00013562,2]
[383630472,1757049884802,623.568371,0.00013562,2]
[383630473,1757049893847,623.568371,0.00013562,2]
[383630474,1757049909245,623.568371,0.00013562,2]
[383630475,1757049917333,623.568371,0.00013562,2]
[383630476,1757049933381,623.568371,0.00013562,2]
[383630477,1757049942064,623.568371,0.00013562,2]
[383630478,1757049958135,623.568371,0.00013562,2]
[383630480,1757049966039,623.568371,0.00013562,2]
[383630482,1757049981410,623.568371,0.00013562,2]
[383630484,1757049989473,623.568371,0.00013562,2]
[383630486,1757050005133,623.568371,0.00013562,2]
[383630488,1757050013063,623.568371,0.00013562,2]
[383630490,1757050046047,623.568371,0.00013562,2]
[383630491,1757050054375,623.568371,0.00013562,2]
[383630492,1757050070554,623.568371,0.00013562,2]
[383630493,1757050078633,623.568371,0.00013562,2]
[383630494,1757050094176,623.568371,0.00013562,2]
[383630495,1757050102903,623.568371,0.00013562,2]
[383630497,1757050115044,23021.4841348,0.00013267,2]
[383630498,1757050118389,623.568371,0.00013562,2]
[383630500,1757050126449,623.568371,0.00013562,2]
[383630502,1757050149955,623.568371,0.00013562,2]
[383630503,1757050172494,623.568371,0.00013562,2]
[383630504,1757050195266,623.568371,0.00013562,2]
[383630511,1757050219363,623.568371,0.00013562,2]
[383630532,1757050232279,-623.568371,0.00013699,2]
[383630534,1757050232290,-217.14161587,0.00014026,2]
[383630536,1757050232299,-217.14161587,0.00014167,2]
[383630538,1757050232309,-321.13980048,0.00014185,2]
[383630540,1757050232318,-3423.84473208,0.00014186,2]
[383630542,1757050232328,-1200.0,0.00014271,2]
[383630544,1757050232338,-300.0,0.00014272,2]
[383630546,1757050232348,-300.0,0.00014272,2]
[383630549,1757050232357,-300.0,0.00014272,2]
[383630552,1757050232367,-300.0,0.00014272,2]
[383630555,1757050232377,-300.0,0.00014272,2]
[383630558,1757050232386,-500.0,0.00014273,2]
[383630561,1757050232395,-500.0,0.00014273,2]
[383630563,1757050232405,-500.0,0.00014273,2]
[383630565,1757050232414,-500.0,0.00014273,2]
[383630567,1757050232423,-168.0,0.00014274,2]
[383630568,1757050232433,-187.78006525,0.00014276,2]
[383630569,1757050232442,-480.0,0.00014282,2]
[383630570,1757050232452,-481.54893944,0.00014282,2]
[383630571,1757050232461,-480.0,0.00014282,2]
[383630572,1757050232471,-483.04896238,0.00014282,2]
[383630573,1757050232480,-480.03512195,0.00014282,2]
[383630574,1757050232490,-163.0557361,0.00014282,2]
[383630575,1757050232514,-448.55268373,0.00014282,2]
[383630576,1757050232523,-486.93913258,0.00014282,2]
[383630577,1757050232533,-1582.87,0.00014283,2]
[383630578,1757050232542,-1131.93,0.00014283,2]
[383630579,1757050232551,-480.0,0.00014283,2]
[383630580,1757050232561,-480.0,0.00014283,2]
[383630581,1757050232570,-863.56,0.00014283,2]
[383630582,1757050232579,-524.98,0.00014283,2]
[383630583,1757050232588,-480.0,0.00014283,2]
[383630584,1757050232598,-480.0,0.00014283,2]
[383630585,1757050232607,-480.0,0.00014283,2]
[383630586,1757050232617,-480.0,0.00014283,2]
[383630587,1757050232626,-500.08,0.00014283,2]
[383630588,1757050232636,-507.98,0.00014283,2]
[383630589,1757050232646,-480.0,0.00014283,2]
[383630590,1757050232655,-480.0,0.00014283,2]
[383630591,1757050232665,-480.0,0.00014283,2]
[383630592,1757050232675,-480.0,0.00014283,2]
[383630593,1757050232686,-480.0,0.00014283,2]
[383630594,1757050232697,-480.0,0.00014283,2]
[383630595,1757050232707,-891.95,0.00014283,2]
[383630596,1757050232717,-480.0,0.00014283,2]
[383630597,1757050232727,-639.6,0.00014283,2]
[383630598,1757050232738,-1056.52,0.00014283,2]
[383630599,1757050232747,-480.0,0.00014283,2]
[383630600,1757050232756,-563.76,0.00014283,2]
[383630601,1757050232767,-480.0,0.00014283,2]
[383630602,1757050232776,-1888.55,0.00014283,2]
[383630603,1757050232786,-650.81,0.00014283,2]
[383630604,1757050232795,-493.2517897,0.00014283,2]
[383630605,1757050232805,-480.0,0.00014283,2]
[383630606,1757050232814,-480.0,0.00014283,2]
[383630607,1757050232823,-480.0,0.00014283,2]
[383630608,1757050232833,-480.0,0.00014283,2]
[383630609,1757050232843,-521.68,0.00014283,2]
[383630610,1757050232853,-480.0,0.00014283,2]
[383630611,1757050232862,-688.59,0.00014283,2]
[383630612,1757050232871,-480.0,0.00014283,2]
[383630613,1757050232881,-480.0,0.00014283,2]
[383630614,1757050232890,-480.0,0.00014283,2]
[383630615,1757050232900,-1059.97,0.00014283,2]
[383630616,1757050232910,-508.88,0.00014283,2]
[383630617,1757050232920,-480.0,0.00014283,2]
[383630618,1757050232930,-277.23457432,0.00014284,2]
[383630619,1757050232939,-480.0,0.00014284,2]
[383630620,1757050232949,-480.0,0.00014284,2]
[383630621,1757050232959,-480.0,0.00014284,2]
[383630622,1757050232969,-480.0,0.00014284,2]
[383630623,1757050232978,-480.0,0.00014284,2]
[383630624,1757050232987,-480.0,0.00014284,2]
[383630625,1757050232997,-480.0,0.00014284,2]
[383630626,1757050233007,-480.0,0.00014284,2]
[383630627,1757050233016,-480.0,0.00014284,2]
[383630628,1757050233026,-238.14444078,0.00014284,2]
[383630629,1757050233035,-480.0,0.00014284,2]
[383630630,1757050233044,-480.0,0.00014284,2]
[383630631,1757050233054,-480.0,0.00014284,2]
[383630632,1757050233064,-402.74651708,0.00014284,2]
[383630633,1757050233074,-480.0,0.00014284,2]
[383630634,1757050233083,-480.0,0.00014284,2]
[383630635,1757050233093,-480.0,0.00014284,2]
[383630636,1757050233103,-480.0,0.00014284,2]
[383630637,1757050233114,-327.6,0.00014284,2]
[383630638,1757050233123,-480.0,0.00014284,2]
[383630639,1757050233133,-480.0,0.00014284,2]
[383630640,1757050233142,-480.0,0.00014284,2]
[383630641,1757050233152,-480.0,0.00014284,2]
[383630642,1757050233162,-480.0,0.00014284,2]
[383630643,1757050233172,-480.0,0.00014284,2]
[383630644,1757050233182,-480.0,0.00014284,2]
[383630645,1757050233191,-480.0,0.00014284,2]
[383630646,1757050233201,-623.63090436,0.00014284,2]
[383630647,1757050233210,-480.0,0.00014284,2]
[383630648,1757050233219,-480.0,0.00014284,2]
[383630649,1757050233229,-480.0,0.00014284,2]
[383630650,1757050233238,-480.0,0.00014284,2]
[383630651,1757050233248,-480.0,0.00014284,2]
[383630652,1757050233257,-321.64208527,0.00014284,2]
[383630653,1757050233267,-480.0,0.00014284,2]
[383630654,1757050233276,-480.0,0.00014284,2]
[383630655,1757050233285,-480.0,0.00014284,2]
[383630656,1757050233294,-480.0,0.00014284,2]
[383630657,1757050233303,-405.540778,0.00014284,2]
[383630658,1757050233313,-495.31,0.00014284,2]
[383630659,1757050233322,-480.0,0.00014284,2]
[383630660,1757050233332,-480.0,0.00014284,2]
[383630661,1757050233341,-270.70505612,0.00014284,2]
[383630662,1757050233350,-480.0,0.00014284,2]
[383630663,1757050233360,-480.0,0.00014284,2]
[383630664,1757050233369,-3117.3,0.00014284,2]
[383630665,1757050233378,-480.0,0.00014284,2]
[383630666,1757050233388,-480.0,0.00014284,2]
[383630667,1757050233397,-506.5,0.00014284,2]
[383630668,1757050233407,-480.0,0.00014284,2]
[383630669,1757050233416,-480.0,0.00014284,2]
[383630670,1757050233425,-573.06,0.00014284,2]
[383630671,1757050233544,-480.0,0.00014284,2]
[383630672,1757050233555,-1508.23,0.00014284,2]
[383630673,1757050233564,-480.0,0.00014284,2]
[383630674,1757050233574,-215.8661612,0.00014284,2]
[383630675,1757050233587,-655.0038388,0.00014284,2]
[383630676,1757050233596,-680.13351754,0.00014284,2]
[383630677,1757050233608,-127.39648246,0.00014284,2]
[383630678,1757050233617,-2103.89,0.00014284,2]
[383630679,1757050233627,-480.0,0.00014284,2]
[383630680,1757050233636,-500.74,0.00014284,2]
[383630681,1757050233646,-480.0,0.00014284,2]
[383630682,1757050233655,-480.0,0.00014284,2]
[383630683,1757050233665,-2583.9,0.00014284,2]
[383630684,1757050233675,-5758.51,0.00014284,2]
[383630685,1757050233684,-702.48,0.00014284,2]
[383630686,1757050233697,-1205.57,0.00014284,2]
[383630687,1757050233707,-530.34,0.00014284,2]
[383630688,1757050233716,-480.0,0.00014284,2]
[383630689,1757050233729,-543.73,0.00014284,2]
[383630690,1757050233738,-480.0,0.00014284,2]
[383630691,1757050233748,-336.94,0.00014284,2]
[383630692,1757050233758,-1131.43,0.00014284,2]
[383630693,1757050233770,-480.0,0.00014284,2]
[383630694,1757050233781,-480.0,0.00014284,2]
[383630695,1757050233790,-480.0,0.00014284,2]
[383630696,1757050233800,-480.0,0.00014284,2]
[383630697,1757050233809,-345.8342626,0.00014284,2]
[383630698,1757050233985,248.64,0.00012329,2]
[383630717,1757050238271,-307.11093545,0.0001414,2]
[383630723,1757050243523,-19744.51085425,0.0001414,2]
[383630725,1757050243533,-483.31438678,0.00014282,2]
[383630727,1757050243543,-480.0,0.00014282,2]
[383630728,1757050243553,-482.70268227,0.00014282,2]
[383630729,1757050243562,-546.03148364,0.00014282,2]
[383630730,1757050243572,-1516.91,0.00014283,2]
[383630731,1757050243583,-500.0,0.00014283,2]
[383630732,1757050243593,-500.0,0.00014283,2]
[383630733,1757050243603,-551.35660791,0.00014283,2]
[383630734,1757050243615,-1381.9857374,0.00014284,2]
[383630735,1757050243625,-480.0,0.00014284,2]
[383630736,1757050243635,-500.0,0.00014284,2]
[383630737,1757050243644,-500.0,0.00014284,2]
[383630738,1757050243654,-500.0,0.00014284,2]
[383630739,1757050243664,-500.0,0.00014284,2]
[383630740,1757050243673,-500.0,0.00014284,2]
[383630741,1757050243683,-500.0,0.00014284,2]
[383630742,1757050243697,-500.0,0.00014284,2]
[383630743,1757050243707,-500.0,0.00014284,2]
[383630744,1757050243717,-480.0,0.00014284,2]
[383630745,1757050243727,-500.0,0.00014284,2]
[383630746,1757050243738,-500.0,0.00014284,2]
[383630747,1757050243749,-500.0,0.00014284,2]
[383630748,1757050243761,-500.0,0.00014284,2]
[383630749,1757050243771,-310.00114454,0.00014284,2]
[383630750,1757050243780,-500.0,0.00014284,2]
[383630751,1757050243790,-500.0,0.00014284,2]
[383630752,1757050243800,-500.0,0.00014284,2]
[383630753,1757050243810,-195.56348341,0.00014284,2]
[383630754,1757050243823,-304.43651659,0.00014284,2]
[383630755,1757050243833,-500.0,0.00014284,2]